[Event "Czech Championship 2022"]
[Site "Usti nad Labem"]
[Date "2022.05.19"]
[Round "6.14"]
[White "Vojta, Jakub"]
[Black "Bokhnak, Timofey"]
[Result "1/2-1/2"]
[ECO "C00"]
[WhiteElo "2396"]
[BlackElo "2060"]
[Annotator "TA"]
[PlyCount "60"]
[EventDate "2022.05.12"]
[EventType "swiss"]
[EventCountry "CZE"]
[SourceTitle "playchess.com"]
[Source "ChessBase"]
[SourceQuality "1"]
[TimeControl "40/5400+30:1800+30"]

{[%evp 9,60,-21,29,37,31,3,16,0,0,0,25,-2,27,6,16,18,18,14,15,-26,8,-44,-39,-37,-37,-59,-35,-28,-36,-49,-41,-39,0,0,0,0,0,0,0,0,0,0,0,0,0,0,8,7,8,9,15,7,7]} 1. e4 {[%emt 0:00:03]} e6 {[%emt 0:01:39]} 2. Qe2 {[%emt 0:01:59]} c5 {[%emt 0:04:30]} 3. g3 {[%emt 0:00:43]} Nc6 {[%emt 0:01:31]} 4. c3 {[%emt 0:00:19]} d5 {[%emt 0:00:42]} 5. d3 {[%emt 0:00:06]} dxe4 {[%emt 0:02:26]} (5... e5 $142) 6. dxe4 $11 {[%emt 0:00:19] C00: French: Unusual White 2nd moves.} Nf6 {[%emt 0:03:24] [#]} 7. Na3 $146 {[%emt 0:09:04]} ({Predecessor:} 7. f4 Be7 8. Bg2 h5 9. Nh3 Ng4 10. Nd2 e5 11. f5 a6 12. a4 Na5 13. O-O Qc7 14. Bf3 Nf6 15. Nc4 Nb3 16. Ra3 Nxc1 17. Rxc1 Bd7 18. Nf2 b5 {½-½ (18) Whitehead,M (1901)-Patrick,D (1878) Llandudno 2019}) 7... Be7 {[%emt 0:05:22]} 8. Bf4 {[%emt 0:03:38]} e5 {[%emt 0:06:32]} 9. Bg5 {[%emt 0:01:48]} a6 {[%emt 0:03:51]} 10. Rd1 {[%emt 0:02:13]} Qc7 {[%emt 0:02:46]} 11. Nc4 {[%emt 0:01:13]} Be6 {[%emt 0:04:25]} (11... Bg4 {feels hotter.} 12. Nf3 Rd8 13. Bxf6 Bxf6 14. Ne3 Be6) 12. Bxf6 {[%emt 0:02:58]} Bxf6 {[%emt 0:00:14]} 13. Bh3 {[%emt 0:04:59]} O-O {[%emt 0:02:31]} 14. Ne3 {[%emt 0:01:12]} Rad8 {[%emt 0:10:25]} 15. Nd5 {[%emt 0:03:30]} ({White should try} 15. Bxe6 $11 fxe6 16. Rxd8 Nxd8 17. Nf3) 15... Bxd5 $15 {[%emt 0:07:03]} 16. exd5 {[%emt 0:01:15]} Ne7 {[%emt 0:00:04]} 17. Qe4 {[%emt 0:14:46]} Rd6 {[%emt 0:02:53]} 18. Nf3 {[%emt 0:02:48]} Rfd8 {[%emt 0:01:08][%cal Re7d5]} 19. c4 {[%emt 0:01:29]} Qa5+ {[%emt 0:00:24]} 20. Rd2 {[%emt 0:08:55]} Qxa2 {[%emt 0:02:49]} 21. O-O {[%emt 0:02:40] The position is equal.} b5 {[%emt 0:01:00]} 22. Nxe5 {[%emt 0:05:01]} Bxe5 {[%emt 0:01:12]} 23. Qxe5 {[%emt 0:00:02]} Ng6 {[%emt 0:00:15]} 24. Qe4 {[%emt 0:02:52]} Qxc4 {[%emt 0:02:21]} 25. Qxc4 {[%emt 0:00:05]} bxc4 {[%emt 0:00:04]} 26. Bg2 {[%emt 0:01:05]} Ne7 {[%emt 0:01:09]} 27. Rc1 {[%emt 0:00:21]} Kf8 {[%emt 0:01:56]} (27... Nxd5 $2 28. Rcd1 $18 (28. Rxc4 g6 $11)) 28. Rxc4 {[%emt 0:04:09]} Nxd5 {[%emt 0:00:24]} 29. Rxc5 {[%emt 0:00:12]} Ne7 {[%emt 0:00:15]} 30. Rxd6 {[%emt 0:02:19]} Rxd6 {[%emt 0:00:06] Weighted Error Value: White=0.14 (very precise) /Black=0.11 (very precise)} 1/2-1/2

[Event "Czech Championship 2022"]
[Site "Usti nad Labem"]
[Date "2022.05.19"]
[Round "6.15"]
[White "Soucek, Petr"]
[Black "Serrano Salvador, Eduardo"]
[Result "1/2-1/2"]
[ECO "A03"]
[WhiteElo "2177"]
[BlackElo "2286"]
[Annotator "TA"]
[PlyCount "83"]
[EventDate "2022.05.12"]
[EventType "swiss"]
[EventCountry "CZE"]
[SourceTitle "playchess.com"]
[Source "ChessBase"]
[SourceQuality "1"]
[TimeControl "40/5400+30:1800+30"]

{[%evp 9,83,0,0,-45,-36,-45,-39,-52,-41,-38,-39,-42,-29,-64,0,0,0,-47,-36,-87,-51,-91,-39,-121,87,93,87,85,85,0,0,-20,36,35,27,23,44,0,50,50,45,45,44,47,43,26,45,17,187,120,166,137,133,132,137,88,98,8,160,165,172,158,168,163,155,19,18,18,18,18,18,5,6,5,5,8]} 1. f4 {[%emt 0:00:39]} d5 {[%emt 0:00:41]} 2. Nf3 {[%emt 0:00:06]} Nf6 {[%emt 0:01:16]} 3. g3 {[%emt 0:00:13]} c6 {[%emt 0:00:34][%cal Bc7c6,Bc6c5][%mdl 32]} 4. Bg2 {[%emt 0:00:37]} Qb6 {[%emt 0:00:07]} 5. d4 {[%emt 0:02:53]} Bf5 {[%emt 0:00:22] [#]} 6. Nbd2 $146 {[%emt 0:03:06] A03: Bird's Opening with 1...d5.} ({Predecessor:} 6. O-O e6 7. e3 c5 8. c3 Nc6 9. Qb3 Be7 10. Nbd2 O-O 11. Ne5 Rfd8 12. h3 Ne4 {0-1 (63) Bocharov,I (2489)-Dzhumagaliev,Y (2424) St Petersburg 2015}) 6... e6 {[%emt 0:01:49]} 7. c3 {[%emt 0:04:14]} c5 {[%emt 0:00:31]} 8. e3 {[%emt 0:01:55] Black is slightly better.} Qa6 {[%emt 0:02:23]} 9. Ne5 {[%emt 0:05:55]} Nc6 {[%emt 0:02:07]} 10. Bf1 {[%emt 0:03:39]} Qb6 {[%emt 0:02:30]} 11. Be2 {[%emt 0:07:01]} Bd6 {[%emt 0:01:18]} (11... h5 $15) 12. g4 $11 {[%emt 0:04:23]} Be4 {[%emt 0:00:44]} 13. Rf1 {[%emt 0:02:19]} (13. O-O $11) 13... h6 $1 $15 {[%emt 0:06:04]} (13... cxd4 14. exd4 h6 15. Nxe4 Nxe4 16. Bd3 $11) 14. a3 {[%emt 0:09:09]} (14. Nxe4 $15 Nxe4 15. Bd3) 14... Rc8 {[%emt 0:02:45]} 15. Qa4 {[%emt 0:03:26]} a6 {[%emt 0:04:32]} (15... Bh7 $17) 16. h4 {[%emt 0:02:33]} (16. dxc5 $15 Qxc5 17. Nxc6 Qxc6 18. Qxc6+ Rxc6 19. Nxe4 Nxe4 20. Bd2) 16... Qa5 $2 {[%emt 0:13:43]} (16... Bh7 $17 17. Bf3 Nd7 18. Nxd7 Kxd7) 17. Qxa5 $16 {[%emt 0:02:58]} Nxa5 {[%emt 0:00:07]} 18. b4 {[%emt 0:01:10]} cxb4 {[%emt 0:00:38]} 19. cxb4 {[%emt 0:10:37]} (19. axb4 $16 Nc6 20. g5 hxg5 21. hxg5) 19... Nc6 $11 {[%emt 0:00:06]} 20. Bb2 {[%emt 0:01:40]} Ke7 {[%emt 0:05:52]} (20... Ne7 $11) 21. Rc1 $14 {[%emt 0:03:08]} Na7 {[%emt 0:01:48]} 22. g5 {[%emt 0:16:26] Threatens to win with Rxc8.} (22. Rxc8 {with more complications.} Rxc8 23. g5 Nd7 24. Nxd7 Rc2 25. Nxe4 dxe4 26. Nf6) 22... hxg5 {[%emt 0:02:34] Hoping for ...Rxc1+.} (22... Rxc1+ {keeps more tension.} 23. Bxc1 Ne8 24. Nxe4 dxe4 25. Bb2 Nc7) 23. hxg5 {[%emt 0:00:45]} Bxe5 {[%emt 0:10:00]} (23... Rxc1+ $11 24. Bxc1 Nd7) 24. Rxc8 {[%emt 0:01:51]} Rxc8 {[%emt 0:00:57]} 25. dxe5 {[%emt 0:03:46]} Nd7 {[%emt 0:01:00]} 26. Nxe4 {[%emt 0:01:29]} dxe4 {[%emt 0:00:06]} 27. Kd2 {[%emt 0:01:22] Inhibits Rc2+.} Nc6 {[%emt 0:02:51]} 28. Rc1 {[%emt 0:04:21]} b5 $2 {[%emt 0:10:17] [#]} (28... Nb6 $11) 29. Bd4 {[%emt 0:01:17]} ({White should try} 29. a4 $1 $18 {[%cal Ra4b5]}) 29... f5 {[%emt 0:00:14]} (29... Kd8 $16 {was called for.}) 30. gxf6+ {[%emt 0:00:28]} gxf6 {[%emt 0:00:06]} 31. exf6+ {[%emt 0:00:08]} Nxf6 {[%emt 0:00:07]} 32. Bc5+ {[%emt 0:00:28]} ({Better is} 32. Bf1) 32... Kf7 {[%emt 0:00:09]} 33. a4 {[%emt 0:00:35]} (33. Bb6 $16) 33... Nd5 $2 {[%emt 0:02:58]} ({Black should play} 33... bxa4 $11 34. Ra1 (34. Bxa6 Rd8+ 35. Ke1 Nd5 $11) 34... Rd8+ 35. Ke1 Rb8) 34. axb5 $16 {[%emt 0:00:25]} axb5 {[%emt 0:00:05]} 35. Bd6 {[%emt 0:01:16]} ({Don't play} 35. Bxb5 $6 Ncxb4 36. Be2 Rd8 $11) 35... Rd8 {[%emt 0:12:04]} 36. Rxc6 {[%emt 0:00:35]} ({Not} 36. Bh5+ Kf6 37. Rxc6 Ne7 $11) 36... Ne7 {[%emt 0:00:03]} 37. Rb6 {[%emt 0:01:23]} (37. Ra6 $16 Nc8 {[#]} 38. Bxb5 $1 (38. Bh5+ Kf6 $11)) 37... Nf5 $11 {[%emt 0:01:29] [#] The position is equal.} 38. Bxb5 $1 {[%emt 0:00:23] And now Rb7+ would win.} Nxd6 {[%emt 0:00:29]} 39. Ke2 {[%emt 0:00:18]} Ke7 {[%emt 0:00:56]} 40. Bc6 {[%emt 0:00:35]} Rh8 {[%emt 0:00:13]} 41. Ra6 {[%emt 0:30:38]} Rh2+ {[%emt 0:31:12]} 42. Ke1 {[%emt 0:00:00] Weighted Error Value: White=0.28 (precise) /Black=0.38} 1/2-1/2

[Event "Czech Championship 2022"]
[Site "Usti nad Labem"]
[Date "2022.05.19"]
[Round "6.16"]
[White "Sykora, Marek"]
[Black "Sykora, Ondrej"]
[Result "1/2-1/2"]
[ECO "C42"]
[WhiteElo "2249"]
[BlackElo "2092"]
[Annotator "TA"]
[PlyCount "111"]
[EventDate "2022.05.12"]
[EventType "swiss"]
[EventCountry "CZE"]
[SourceTitle "playchess.com"]
[Source "ChessBase"]
[SourceQuality "1"]
[TimeControl "40/5400+30:1800+30"]

{[%evp 15,111,0,11,-4,-14,-31,0,-20,-20,-77,-70,-77,-50,-43,-55,-50,-52,-57,-38,-29,-31,-49,-23,-22,-10,-45,-22,-34,-25,-60,-28,-35,-34,-49,0,0,0,-101,-61,-92,-89,-102,-75,-139,-76,-133,-102,-153,-129,-227,-106,-106,-114,-117,-100,-117,0,0,0,-394,0,0,0,-415,0,0,0,-411,-381,-366,0,0,0,0,0,0,0,0,0,0,0,0,0,0,0,0,0,0,0,0,0,0,0,0,0,0,0,0]} 1. e4 {[%emt 0:00:12]} e5 {[%emt 0:00:05]} 2. Nc3 {[%emt 0:00:53]} Nf6 {[%emt 0:01:22]} 3. Bc4 {[%emt 0:01:03]} Bb4 {[%emt 0:00:06]} 4. d3 {[%emt 0:00:36]} d5 {[%emt 0:00:34]} 5. exd5 {[%emt 0:00:31]} Nxd5 {[%emt 0:01:02]} 6. Bd2 {[%emt 0:04:45]} Nxc3 {[%emt 0:01:33]} 7. bxc3 {[%emt 0:00:09]} Bd6 {[%emt 0:00:13]} 8. Nf3 {[%emt 0:02:19]} O-O {[%emt 0:01:17]} 9. Bg5 {[%emt 0:04:48] C42: Petroff Defence: 3 Nxe5 and unusual White 3rd moves.} Qe8 {[%emt 0:03:42] [#]} 10. Qe2 $146 {[%emt 0:01:54]} ({Predecessor:} 10. O-O Be6 11. Bxe6 Qxe6 12. Qb1 b6 13. Qb3 Qxb3 14. axb3 Nc6 15. Ra6 Nb8 16. Ra4 a5 {1-0 (47) Rodriguez Bittar,K (1943)-Alonso Contreras,M (1871) Santa Cruz de Tenerife 2018}) 10... Qc6 {[%emt 0:06:57]} 11. Rb1 {[%emt 0:11:37] Inhibits b5.} (11. O-O $5 {[%cal Rf3e5]}) 11... a6 {[%emt 0:07:21][%cal Ba7a6,Ba6a5][%mdl 32]} 12. Bd2 {[%emt 0:09:34]} (12. O-O $11) 12... b5 {[%emt 0:02:22]} 13. Bb3 {[%emt 0:00:29]} a5 {[%emt 0:00:30]} 14. c4 {[%emt 0:00:59]} b4 {[%emt 0:06:19] Strongly threatening ...a4.} 15. c3 {[%emt 0:05:20]} Na6 {[%emt 0:05:42]} 16. cxb4 {[%emt 0:08:23]} Nxb4 {[%emt 0:04:27] And now ...Bf5 would win.} 17. a3 {[%emt 0:07:04]} Na6 {[%emt 0:05:47]} 18. Bxa5 {[%emt 0:01:02]} Bxa3 {[%emt 0:50:11]} 19. O-O {[%emt 0:08:05]} Bg4 {[%emt 0:00:00]} 20. Qxe5 {[%emt 0:04:16]} Bd6 {[%emt 0:00:00]} 21. Qd4 {[%emt 0:06:51]} Bxf3 {[%emt 0:00:00]} 22. gxf3 {[%emt 0:00:27] Threatens to win with Bc3.} Nc5 {[%emt 0:00:00]} 23. Bc3 {[%emt 0:07:48][%csl Gc3][%cal Rd4g7] A strong pair of Bishops.} f6 {[%emt 0:00:00]} 24. Bb4 {[%emt 0:00:33] Inhibits Ra3.} Qxf3 {[%emt 0:00:00]} 25. Bxc5 $11 {[%emt 0:06:34]} Bxc5 {[%emt 0:00:00]} 26. Qh4 {[%emt 0:03:25]} (26. Qxc5 $11 {remains equal.} Qg4+ 27. Kh1 Qf3+ 28. Kg1 Qg4+ 29. Kh1 Qf3+ 30. Kg1) 26... Qf5 {[%emt 0:00:00]} 27. Bd1 {[%emt 0:04:23]} Qxd3 {[%emt 0:00:00]} 28. Rb3 {[%emt 0:00:00]} Qd4 {[%emt 0:00:00]} 29. Qh5 {[%emt 0:00:00]} (29. Qxd4 $142 Bxd4 30. Rd3) 29... Qe5 {[%emt 0:00:00]} ({Don't play} 29... Qxc4 30. Rh3 Bxf2+ 31. Kxf2 Qd4+ 32. Kg2 $18) (29... f5 $142 30. Qf3 Rad8) 30. Qh3 {[%emt 0:00:00]} (30. Qxe5 $142 fxe5 31. Bf3) 30... Ra2 {[%emt 0:00:12][%cal Oa2f2]} 31. Rf3 {[%emt 0:00:07]} (31. Rd3 $142) 31... Rd8 $36 {[%emt 0:01:12][%mdl 2048] White is under strong pressure.} 32. Rf5 {[%emt 0:00:43] [#]} (32. Qf5 $17) 32... Qd4 {[%emt 0:01:04]} (32... Bxf2+ $1 $19 {[%mdl 512] and Black stays clearly on top.} 33. R5xf2 (33. Kh1 Qe4+) 33... Rxf2 34. Kxf2 Rd2+ 35. Kg1 Qd4+ 36. Kh1 Rxd1 37. Qc8+ Qd8 38. Qxd8+ Rxd8) 33. Rd5 $17 {[%emt 0:01:38][%mdl 64] Decoy} Rxd5 {[%emt 0:00:40]} 34. Qe6+ {[%emt 0:00:12]} Kf8 {[%emt 0:00:20][%cal Ra2f2]} 35. cxd5 {[%emt 0:00:48][%cal Od5d6] d6! is the strong threat.} Rxf2 {[%emt 0:00:19]} ({Better is} 35... Ra8 $17 36. Qh3 h6) 36. Qc8+ $11 {[%emt 0:00:01]} Kf7 {[%emt 0:00:13]} 37. Qe6+ {[%emt 0:00:44][%mdl 8192]} (37. Qxc7+ $11 {and White has nothing to worry.} Kg6 38. Qg3+ Kf7 39. Qc7+ (39. Qxf2 $2 Qxd5 40. Be2 Qg5+ 41. Kh1 Bxf2 $19) 39... Kg6 40. Qg3+ Kf7 41. Qc7+ (41. Qxf2 $2 Qxd5 42. h3 g6 $19)) 37... Kf8 $2 {[%emt 0:03:16]} (37... Kg6 $1 $19 38. Qe8+ Kf5) 38. Qc8+ {[%emt 0:00:05]} Kf7 {[%emt 0:00:07]} 39. Qe6+ {[%emt 0:00:19][%mdl 8192] [#]} (39. Qxc7+ $11 Kg6 40. Qg3+ Kf7 41. Qc7+ (41. Qxf2 $2 Qxd5 42. Qxc5 Qxc5+ $19) 41... Kg6 42. Qg3+ Kf7 43. Qc7+ (43. Qxf2 $2 Qxd5 44. Bf3 Qg5+ 45. Kh1 Bxf2 $19)) 39... Kf8 $2 {[%emt 0:00:07]} (39... Kg6 $1 $19 40. Qe8+ Kf5) 40. Qc8+ {[%emt 0:00:22]} Kf7 {[%emt 0:00:05]} 41. Qe6+ {[%emt 0:02:51][%mdl 8192] [#]} (41. Qxc7+ $11 {and White is okay.} Kg6 42. Qg3+ Kf7 43. Qc7+ (43. Qxf2 $2 {perishes.} Qxd5 44. Bf3 Qg5+ 45. Kh1 Bxf2 $19) 43... Kg6 44. Qg3+ Kf7 45. Qc7+ (45. Qxf2 $2 {loses.} Qxd5 46. Be2 Qg5+ 47. Kh1 Bxf2 $19)) 41... Kg6 $1 $19 {[%emt 0:05:52]} 42. Qe8+ {[%emt 0:00:05]} Kg5 $2 {[%emt 0:00:06]} ({Black should try} 42... Kf5 $1 $19 {( -> ...Rxf1+)} 43. Qe1 Rxf1+ 44. Kxf1 Qg1+ 45. Ke2 Qxh2+ 46. Kd3 h5) 43. Qh5+ $11 {[%emt 0:00:19] The position is equal.} Kf4 {[%emt 0:00:16]} 44. Qg4+ {[%emt 0:00:09]} Ke5 {[%emt 0:00:09]} 45. Qe6+ {[%emt 0:01:01]} Kf4 {[%emt 0:00:32]} 46. Qg4+ {[%emt 0:00:02]} Ke5 {[%emt 0:04:17]} 47. Qe6+ {[%emt 0:00:05]} Kf4 {[%emt 0:00:04]} 48. Qg4+ {[%emt 0:00:03]} Ke5 {[%emt 0:00:05]} 49. Qe6+ {[%emt 0:00:04]} Kf4 {[%emt 0:00:03]} 50. Qg4+ {[%emt 0:00:05]} Ke5 {[%emt 0:08:34]} 51. Qe6+ $1 {[%emt 0:00:06]} Kf4 {[%emt 0:00:04]} 52. Qg4+ {[%emt 0:00:06]} Ke5 {[%emt 0:00:06]} 53. Qe6+ $1 {[%emt 0:00:04]} Kf4 {[%emt 0:00:04]} 54. Qg4+ {[%emt 0:00:04]} Ke5 {[%emt 0:00:06]} 55. Qe6+ $1 {[%emt 0:00:03]} Kf4 {[%emt 0:00:07]} 56. Qg4+ {[%emt 0:34:24] Weighted Error Value: White=0.82/Black=0.53} 1/2-1/2

[Event "Czech Championship 2022"]
[Site "Usti nad Labem"]
[Date "2022.05.19"]
[Round "6.17"]
[White "Brejnik, Gustav"]
[Black "Ocelak, Jakub"]
[Result "1-0"]
[ECO "E67"]
[WhiteElo "2246"]
[BlackElo "2060"]
[Annotator "TA"]
[PlyCount "69"]
[EventDate "2022.05.12"]
[EventType "swiss"]
[EventCountry "CZE"]
[SourceTitle "playchess.com"]
[Source "ChessBase"]
[SourceQuality "1"]
[TimeControl "40/5400+30:1800+30"]

{[%evp 16,68,47,15,38,12,8,8,22,23,23,20,37,41,100,74,82,80,81,80,103,82,107,56,64,67,111,104,311,322,342,352,347,336,333,325,308,256,320,334,330,317,815,808,1069,1060,1248,1027,29985,29986,29994,29995,29995,29986,29999]} 1. d4 {[%emt 0:00:03]} Nf6 {[%emt 0:00:07]} 2. c4 {[%emt 0:00:05]} g6 {[%emt 0:00:16]} 3. Nc3 {[%emt 0:00:37]} Bg7 {[%emt 0:00:07]} 4. g3 {[%emt 0:00:48]} O-O {[%emt 0:00:18]} 5. Bg2 {[%emt 0:01:38]} d6 {[%emt 0:00:02]} 6. Nf3 {[%emt 0:00:07]} Nbd7 {[%emt 0:00:03]} 7. O-O {[%emt 0:00:08]} e5 {[%emt 0:00:06]} 8. e4 {[%emt 0:00:16]} Re8 {[%emt 0:00:05]} 9. h3 {[%emt 0:02:24]} b6 {[%emt 0:00:01] E67: King's Indian: Fianchetto: 6...Nbd7.} 10. Be3 {[%emt 0:11:21]} exd4 {[%emt 0:08:54]} 11. Nxd4 {[%emt 0:03:20] [#] Black must now prevent Nc6.} Bb7 {[%emt 0:00:42] Inhibits Nc6. The position is equal.} 12. Qc2 {[%emt 0:01:37]} Nc5 {[%emt 0:03:54][%cal Rc5e4]} 13. f3 {[%emt 0:01:17]} Nh5 {[%emt 0:20:37]} 14. Nde2 {[%emt 0:05:32] [#]} Be5 $146 {[%emt 0:05:39]} (14... f5 $14) ({Predecessor:} 14... f5 15. g4 Nf6 16. Bxc5 dxc5 17. exf5 gxf5 18. Qxf5 Qd2 19. Ng3 Qxb2 20. Nce4 Nxe4 21. Nxe4 {½-½ (71) Dzhaparov,M (1667)-Bernadskiy,V (2592) Chess.com INT 2021}) 15. Bf2 {[%emt 0:04:07]} Qb8 {[%emt 0:07:01]} 16. b4 {[%emt 0:07:57]} Nd7 {[%emt 0:04:04]} 17. Rad1 {[%emt 0:04:51]} a5 {[%emt 0:03:09]} 18. a3 {[%emt 0:02:59]} Nf8 {[%emt 0:03:45]} 19. Nd5 {[%emt 0:14:35]} ({Better is} 19. f4 $16 Bg7 20. Nd5) 19... axb4 $14 {[%emt 0:15:22]} 20. axb4 {[%emt 0:00:05]} Bc6 {[%emt 0:00:16]} 21. Qd2 {[%emt 0:06:30] g4 is the strong threat. White is more active.} Ra3 $2 {[%emt 0:06:29] [#] This costs Black the game.} (21... Bg7 $16 {is a better defense.}) 22. g4 $1 $18 {[%emt 0:03:53]} Bxd5 {[%emt 0:04:26]} 23. cxd5 {[%emt 0:00:25]} ({Inferior is} 23. Qxd5 Nf4 24. Nxf4 Bxf4 $11) ({Not} 23. exd5 Qa8 $14) 23... Ng7 {[%emt 0:00:10]} 24. f4 {[%emt 0:00:43]} Bf6 {[%emt 0:00:03]} 25. g5 {[%emt 0:00:11]} Bd8 {[%emt 0:00:21]} 26. Qb2 {[%emt 0:04:26]} Ra8 {[%emt 0:02:34]} 27. Bd4 {[%emt 0:01:02]} Nh5 {[%emt 0:01:46]} 28. Bf3 {[%emt 0:00:16] And now Bxh5 would win.} Nd7 $2 {[%emt 0:00:17]} (28... Nxf4 29. Nxf4 Bxg5) 29. Bxh5 {[%emt 0:07:00]} gxh5 {[%emt 0:00:03]} 30. Ng3 {[%emt 0:00:08][%cal Be2g3,Bg3f5,Bf5h6][%mdl 32]} f6 {[%emt 0:01:35]} 31. gxf6 {[%emt 0:00:47][%cal Bg5f6,Bf6f7][%mdl 32]} h4 {[%emt 0:00:22]} 32. Nf5 {[%emt 0:00:23] White mates.} Kf7 {[%emt 0:01:59]} 33. Nh6+ {[%emt 0:00:13]} Kf8 {[%emt 0:00:09]} 34. f7 {[%emt 0:00:45]} Re7 {[%emt 0:00:05]} 35. Bg7# {[%emt 0:17:31] Weighted Error Value: White=0.10 (very precise) /Black=0.55} 1-0

[Event "Czech Championship 2022"]
[Site "Usti nad Labem"]
[Date "2022.05.19"]
[Round "6.18"]
[White "Pokrupa, Marek"]
[Black "Nytra, Ondrej"]
[Result "1-0"]
[ECO "D02"]
[WhiteElo "2117"]
[BlackElo "2219"]
[Annotator "TA"]
[PlyCount "47"]
[EventDate "2022.05.12"]
[EventType "swiss"]
[EventCountry "CZE"]
[SourceTitle "playchess.com"]
[Source "ChessBase"]
[SourceQuality "1"]
[TimeControl "40/5400+30:1800+30"]

{[%evp 9,47,33,33,35,33,13,16,22,19,16,24,0,26,4,30,22,179,170,297,290,323,325,443,443,499,407,612,408,469,367,528,514,500,495,706,717,706,570,570,351]} 1. Nf3 {[%emt 0:00:11]} d5 {[%emt 0:00:09]} 2. g3 {[%emt 0:00:09]} Nc6 {[%emt 0:00:06]} 3. d4 {[%emt 0:01:26]} Bf5 {[%emt 0:00:19]} 4. Bg2 {[%emt 0:00:07]} Nb4 {[%emt 0:00:08]} 5. Na3 {[%emt 0:00:46]} e6 {[%emt 0:00:04]} 6. c3 {[%emt 0:04:07][%cal Bc2c3,Bc3c4,Bc4d5][%mdl 32] D02: 1 d4 d5 2 Nf3 sidelines, including 2...Nf6 3 g3 and 2...Nf6 3 Bf4.} Nc6 {[%emt 0:00:05]} 7. Qb3 {[%emt 0:15:00]} Rb8 {[%emt 0:00:17]} 8. O-O {[%emt 0:01:37] The position is equal.} Be7 {[%emt 0:03:52] Prevents Nh4.} 9. c4 {[%emt 0:08:52]} Nf6 {[%emt 0:10:38]} 10. Bf4 {[%emt 0:07:13]} a6 {[%emt 0:12:12] [#] Prevents Nb5.} 11. Rfd1 $146 {[%emt 0:06:17]} ({Predecessor:} 11. Rac1 O-O 12. Rfd1 Be4 13. Ne5 Bxg2 14. Kxg2 Bd6 15. Qf3 Nb4 16. Nc2 Nxc2 17. Rxc2 {0-1 (52) Radzhabov,R (2344)-Afanasiev,N (2514) Cheliabinsk 2021}) 11... Nh5 {[%emt 0:06:24]} 12. Be3 {[%emt 0:00:46]} g5 $2 {[%emt 0:05:20] [#] Black cannot hold the game after this.} (12... Be4 $11 {and Black stays safe.}) 13. Ne5 $18 {[%emt 0:05:42][%cal Rc4d5,Bf3e5,Be5d3,Bd3c5][%mdl 32]} f6 {[%emt 0:02:26]} (13... Kf8 $142 14. cxd5 exd5 15. Qxd5 (15. Bxd5 Na5 $15) 15... Qxd5 16. Bxd5 Nxe5) 14. cxd5 {[%emt 0:03:01]} Nb4 {[%emt 0:00:20]} 15. g4 {[%emt 0:18:48]} ({Don't take} 15. dxe6 fxe5 16. dxe5 Qc8 $18) 15... Nxd5 {[%emt 0:06:19]} 16. gxf5 {[%emt 0:00:30]} ({Not} 16. gxh5 Nxe3 17. Qxe3 fxe5 $16) 16... Nxe3 {[%emt 0:02:14]} 17. Qxe3 {[%emt 0:09:15]} exf5 {[%emt 0:00:25]} (17... Nf4 $142 18. Nd3 Nxg2 19. Kxg2 Qd5+ 20. Qf3 Qxf5 21. Qxf5 exf5) 18. Nd3 {[%emt 0:02:26]} Kf7 {[%emt 0:00:13]} 19. Nc5 {[%emt 0:00:22]} Re8 {[%emt 0:01:07]} (19... Nf4 {was worth a try.} 20. Bxb7 Kg6) 20. Qe6+ {[%emt 0:05:27] White is clearly winning.} Kg6 {[%emt 0:00:04]} 21. e4 {[%emt 0:00:12][%cal Be2e4,Be4f5][%mdl 32]} Ng7 {[%emt 0:02:03]} (21... Kg7 $142 22. Qxf5 Kh8) 22. exf5+ {[%emt 0:00:06]} Kh6 {[%emt 0:00:10]} 23. Qf7 {[%emt 0:00:44] [#] Strongly threatening Rd3.} Rf8 {[%emt 0:02:19]} 24. Qxg7+ {[%emt 0:01:14] Weighted Error Value: White=0.28 (precise) /Black=0.68} 1-0